Workbook

Sheet Calculation Sheet
B1: TPS25947xx Design Calculation Tool
P2: Table - 1: Device Comparison Table
C3: Constants Cells | P3: Part number | Q3: Overvoltage Response | R3: Overcurrent response | S3: AUXOFF or PG | T3: FLT or PGTH | U3: Response to Thermal Shutdown (TSD) | W3: 3.8 | X3: 5.7 | Y3: 13.8
C4: Input/SelectCells | P4: TPS259470A | Q4: Adjustable OVLO | R4: Active Current Limit | S4: AUXOFF | T4: FLT | U4: Auto-Retry | W4: Short | X4: Open | Y4: 390
C5: Calculation Cells | P5: TPS259470L | Q5: Adjustable OVLO | R5: Active Current Limit | S5: AUXOFF | T5: FLT | U5: Latch-off
C6: Calculated, but can be over-ridden by user | P6: TPS259472A | Q6: Pin Selectable OVC (3.8 V/5.7 V/13.8 V) | R6: Active Current Limit | S6: PG | T6: PGTH | U6: Auto-Retry
C7: Error Cells, Must be Fixed | P7: TPS259472L | Q7: Pin Selectable OVC(3.8 V/5.7 V/13.8 V) | R7: Active Current Limit | S7: PG | T7: PGTH | U7: Latch-off
P8: TPS259474A | Q8: Adjustable OVLO | R8: Circuit Breaker | S8: PG | T8: PGTH | U8: Auto-retry
B9: Parameter | C9: Description | D9: Value | E9: Units | F9: Tolerance | G9: Recommended Value | P9: TPS259474L | Q9: Adjustable OVLO | R9: Circuit Breaker | S9: PG | T9: PGTH | U9: Latch-off
B10: Select Device | C10: Refer to Table-1 on top right side and select based on OverVoltage Clamp/Lockout,Overcurrent response and Latch-off/Auto-retry requirement | D10: TPS259470A
B11: VIN (max) | C11: Maximum Operating input voltage (magnitude) | D11: 12 | E11: V
B12: VIN (max) | C12: Maximum Operating input voltage (magnitude) | D12: 16.8 | E12: V
B13: VCLAMP | C13: Desired Over Voltage Clamp | D13: 13.8 | E13: V | F13: 0.035
B14: VIN (max) Selected | C14: Maximum Operating input voltage selected from D6 and D7 | D14: =IF(D10=P4,D12, IF(D10=P5,D12, IF(D10=P6,D11, IF(D10=P7,D11,IF(D10=P8,D12,D12))))) -> 16.8 | E14: V
B15: OVLO Set Point | C15: Desired Over Voltage Lockout Set Point | D15: 18.5 | E15: V | F15: 0.03
B16: UVLO Set Point | C16: Desired Undervoltage Threshold (VIN Rising) | D16: 13.3 | E16: V | F16: 0.03
B17: VUVP | C17: Internal Undervoltage Protection Threshold (VIN Rising) | D17: 2.53 | E17: V | F17: 0.03
B18: Cout | C18: Load Capacitance | D18: 2.2 | E18: uF | F18: 0.1
B19: Rlstart | C19: Load at startup | D19: 1200 | E19: Ohm | G19: =Vcc_max/Imax -> 7.636363636
B20: Load turn on voltage | C20: Output voltage at which startup load will start drawing current | D20: 12 | E20: V
B21: Imax | C21: Maximum continuous load current (magnitude) | D21: 2.2 | E21: A
B22: Ilimit | C22: Current Limit, 10.5% higher than maximum continuous load current | D22: =IF(1.105*Imax<0.5, 0.5, IF(1.105*Imax>6, 6,1.105*Imax )) -> 2.431 | E22: A
B23: tITIMER | C23: Load transient blanking interval | D23: 5 | E23: ms
B24: TA, MAX | C24: Maximum Operating Ambient temperature | D24: 65 | E24: °C
B26: OVC set point calculations (TPS259472x)
B27: VOVC | C27: Over Voltage Clamp | D27: =D13 -> 13.8 | E27: V | F27: 0.035
B28: R_OVCSEL | C28: Calculated value of Resistor at OVCSEL pin | D28: =INDEX(W4:Y4,MATCH(D27,W3:Y3)) -> 390 | E28: kOhm
B30: UVLO set point calculations (TPS259472x)
B31: UVLO Set Point | C31: Desired Undervoltage Threshold (VIN Rising) | D31: =D16 -> 13.3 | E31: V | F31: 0.03
B32: R1: Pullup at EN/UVLO Pin | C32: Value > 350k recommended | D32: 470 | E32: kOhm | F32: 0.01 | K32: =D37 -> 11.98421053 | L32: Power Fail (VIN Falling)
B33: R2_cal | C33: Calculated value of Resistor at EN/UVLO pin | D33: =D32/(D31/OVref -1) -> 46.61157025 | E33: kOhm | K33: =D36 -> 13.07368421 | L33: Release UVLO (VIN Rising)
B34: SELECT THE VALUE OF RESISTORS AS CLOSEST AVAILABLE VALUE OF R2 | K34: =D27 -> 13.8 | L34: OV Clamp (VIN Rising)
B35: R2 | C35: Select the closest possible value as R2_cal | D35: =G35 -> 47.5 | E35: kOhm | F35: =F32 -> 0.01 | G35: =L56/L55*D33 -> 47.5
B36: UV_final_rising | C36: Undervoltage Threshold (VIN Rising) | D36: =OVref*(1+D32/D35) -> 13.07368421 | E36: V | F36: =SQRT(F126^2+F32^2+F35^2) -> 0.0331662479
B37: UV_final_falling | C37: Undervoltage Threshold (VIN Falling) | D37: =UVref*(1+D32/D35) -> 11.98421053 | E37: V | F37: =SQRT(F125^2+F32^2+F35^2) -> 0.06456779383
B38: I_R12 | C38: Current in R1, R2 Branch | D38: =D11*1000/(D32+D35) -> 23.1884058 | E38: uA
B41: UVLO, OVLO set point calculations (TPS259470x and TPS259474x) | L41: R2+R3
B42: UVLO Set Point | C42: Desired Undervoltage Threshold (VIN Rising) | D42: =D16 -> 13.3 | L42: =(OVref*D44)/(D42-OVref) -> 46.61157025
B43: OVLO Set Point | C43: Desired Over Voltage Lockout Set Point | D43: =D15 -> 18.5 | J43: =D51 -> 12.03023256 | K43: Power Fail (VIN Falling) | L43: R2
B44: R1: Pullup at EN/OVLO Pin | C44: Value > 350K recommended | D44: 470 | E44: kOhm | F44: 0.01 | J44: =D50 -> 13.12389006 | K44: Release UVLO (VIN Rising) | L44: =IF(D45>=10000,D45/100,IF(D45>=1000,D45/10,IF(D45>=100,D45,IF(D45>=10,D45*10,D45*100)))) -> 131.0163056
B45: R2_cal | C45: Calculated value of Resistor at EN/OVLO pin | D45: =L42-D46 -> 13.10163056 | E45: kOhm | J45: =D53 -> 16.73617647 | K45: Release OVLO (VIN Falling) | L45: =INDEX('Res EIA Tables'!E$5:E$197,2+MATCH(L44,'Res EIA Tables'!E$5:E$197)) -> 133
B46: R3_cal | C46: Calculated value of Resistor at EN/OVLO pin | D46: =(D44+L42)*OVref/D43 -> 33.50993969 | E46: kOhm | J46: =D52 -> 18.25764706 | K46: OV Cutoff (VIN Rising) | L46: R3
B47: SELECT THE VALUE OF RESISTORS AS CLOSEST AVAILABLE VALUE OF R2 & R3 | L47: =IF(D46>=10000,D46/100,IF(D46>=1000,D46/10,IF(D46>=100,D46,IF(D46>=10,D46*10,D46*100)))) -> 335.0993969
B48: R2 | C48: Select the closest possible value as R2_cal | D48: =G48 -> 13.3 | E48: kOhm | F48: 0.01 | G48: =L45*D45/L44 -> 13.3 | L48: =INDEX('Res EIA Tables'!E$5:E$197,2+MATCH(L47,'Res EIA Tables'!E$5:E$197)) -> 340
B49: R3 | C49: Select the closest possible value as R3_cal | D49: =G49 -> 34 | E49: kOhm | F49: 0.01 | G49: =L48*D46/L47 -> 34
B50: UV_final_rising | C50: Undervoltage Threshold (VIN Rising) | D50: =OVref*(D44+D48+D49)/(D48+D49) -> 13.12389006 | E50: V | F50: =SQRT(F126^2+F44^2+F48^2+F49^2) -> 0.03464101615 | L50: =IF(D58>=100,D58,IF(D58>=10,D58*10,D58*100)) -> 0
B51: UV_final_falling | C51: Undervoltage Threshold (VIN Falling) | D51: =UVref*(D44+D48+D49)/(D48+D49) -> 12.03023256 | E51: V | F51: =SQRT(F125^2+F44^2+F48^2+F49^2) -> 0.0653375849 | L51: =IF(L50>1000,INDEX('Res EIA Tables'!E$5:E$197,MATCH(L50/10,'Res EIA Tables'!E$5:E$197))*10,INDEX('Res EIA Tables'!E$5:E$197,MATCH(L50,'Res EIA Tables'!E$5:E$197))) -> 
B52: OV_final_rising | C52: Overvoltage Threshold (VIN Rising) | D52: =OVref*(D44+D48+D49)/(D49) -> 18.25764706 | E52: V | F52: =SQRT(F126^2+F44^2+F48^2+F49^2) -> 0.03464101615
B53: OV_final_falling | C53: Overvoltage Threshold (VIN Falling) | D53: =UVref*(D44+D48+D49)/(D49) -> 16.73617647 | E53: V | F53: =SQRT(F125^2+F44^2+F48^2+F49^2) -> 0.0653375849 | L53: =IF(D62>=10000,D62/100,IF(D62>=1000,D62/10,IF(D62>=100,D62,IF(D62>=10,D62*10,D62*100)))) -> 552.9411765
B54: I_R123 | C54: Current in R1, R2 and R3 Branch | D54: =D12*1000/(D44+D48+D49) -> 32.47631935 | E54: uA | L54: =INDEX('Res EIA Tables'!E$5:E$197,2+MATCH(L53,'Res EIA Tables'!E$5:E$197)) -> 562
L55: =IF(D33>=10000,D33/100,IF(D33>=1000,D33/10,IF(D33>=100,D33,IF(D33>=10,D33*10,D33*100)))) -> 466.1157025
L56: =INDEX('Res EIA Tables'!E$5:E$197,2+MATCH(L55,'Res EIA Tables'!E$5:E$197)) -> 475
L57: =IF(D70>=10000,D70/100,IF(D70>=1000,D70/10,IF(D70>=100,D70,IF(D70>=10,D70*10,D70*100)))) -> 137.1452077
L58: =INDEX('Res EIA Tables'!E$5:E$197,2+MATCH(L57,'Res EIA Tables'!E$5:E$197)) -> 140
B59: PGset point calculations(TPS259472x and TPS259474x)
B60: Desired PG threshold | C60: Power good voltage threshold | D60: 11.4 | E60: V | F60: 0.03
B61: R4: Pullup at PGTH pin | C61: Select a value > 100k to keep I_R45 low | D61: 47 | E61: kOhm | F61: 0.01
B62: R5_cal | C62: Calculated value of Resistor at PGTH pin | D62: =D61*PGTH/(D60-PGTH) -> 5.529411765 | E62: kOhm
B63: SELECT THE VALUE OF RESISTOR AS CLOSEST AVAILABLE VALUE OF R5
B64: R5 | C64: Select the closest possible value as R5_cal | D64: =D62*L54/L53 -> 5.62 | E64: kOhm | F64: 0.01
B65: PG_final_rising | C65: Power Good Threshold (Rising) | D65: =1.2*(D61+D64)/D64 -> 11.23558719 | E65: V | F65: =SQRT(F126^2+F61^2+F64^2) -> 0.0331662479
B66: PG_final_falling | C66: Power Good Threshold (Falling) | D66: =1.1*(D61+D64)/D64 -> 10.29928826 | E66: V | F66: =SQRT(F125^2+F61^2+F64^2) -> 0.06456779383
B67: I_R45 | C67: Current in R4, R5 Branch | D67: =D12*1000/(D61+D64) -> 319.2702395 | E67: uA
B69: Calculations for Ilimit (resistor on ILM Pin) | K69: =Icharge*(10^-3) -> 0.001833333333 | L69: Inrush Charging Current
B70: RILM_Cal | C70: Calculated current limit resistor | D70: =3334/(Ilimit) -> 1371.452077 | E70: Ohm | K70: =Ilimit_final -> 2.381428571 | L70: Overload Curr Limit
B71: SELECT A ILIMIT RESISTOR WITH THE CLOSEST AVAILABLE VALUE OF Rilm_Cal
B72: RILM | C72: Select the closest available value of RLM_cal | D72: =G72 -> 1400 | E72: Ohm | F72: 0.01 | G72: =L58/L57*D70 -> 1400
B73: Ilimit_final | C73: Final current Limit Set Point | D73: =3334/D72 -> 2.381428571 | E73: A | F73: =SQRT(0.105^2+F72^2) -> 0.1054751155
B74: Isc | C74: Scalable fast trip threshold | D74: =2*Ilimit_final -> 4.762857143 | E74: A | F74: =F73 -> 0.1054751155
B76: Calculations for SoftStart control (external cap on dVdt pin)
B77: Parameter | C77: Description | D77: Value | E77: Units | F77: Tolerance
B78: I_dVdt | C78: Internal charging current on dVdt | D78: 2.2 | E78: uA | F78: 0.104
B79: Icharge_fastest | C79: Charging current when charging at fastest possible rate If this current is < Ilimit, no capacitor is required at dVdT pin | D79: =Cout*(Vcc_max/D80)/1000 -> 0.09189183814 | E79: A
B80: Tchg_fastest | C80: when no external capacitor is connected (max. slew rate) | D80: =-0.0007*(Vcc_max^2) + 0.0301*Vcc_max + 0.0941 -> 0.402212 | E80: ms | F80: 0.15
B81: Tchg_req | C81: The charging time required | D81: 20 | E81: ms
B82: Icharge_req | C82: Charging (inrush) current desired in the system | D82: 1 | E82: A
B83: Cext_dvdt_cal1 | C83: calculated value of capacitor at dVdT pin for required Tcharge | D83: =IF(Tchg_req<D80, 0, (2000*Tchg_req/Vcc_max)) -> 2380.952381 | E83: pF
B84: Cext_dvdt_cal2 | C84: calculated value of capacitor at dVdT pin for required Icharge | D84: =(2000*Cout/Icharge_req/1000) -> 4.4 | E84: pF
B85: SELECT A CAPACITOR WITH THE CLOSEST POSSIBLE VALUE to max(Cext_dvdt_cal1, Cext_dvdt_cal2) | G85: =(MAX(D83,D84))/1000 -> 2.380952381 | AD85: =Y95-AB93 -> 0.191168
B86: CdVdT_ext | C86: The external capacitor connecetd across dVdT pin (OPEN, or >=1nF) | D86: =G87 -> 2.4 | E86: nf | F86: 0.1 | U86: =D90+D93 -> 0.02317142857 | V86: =AB93/I93 -> 0.02053333333 | AD86: =(23.97*Tchg_dvdt^(-0.33)*Tchg_dvdt)-AB93 -> 179.0638347
B87: Icharge | C87: Charging Current as per dVdT setting | D87: =IF(Cdvdt_ext="OPEN",D79*1000,(Cout*2000/Cdvdt_ext/1000)) -> 1.833333333 | E87: mA | F87: =SQRT(F89^2+F18^2) -> 0.1414213562 | G87: =IF(G85>1,INDEX('Cap Tables'!B4:B75,1+MATCH(G85,'Cap Tables'!B4:B75)),(INDEX('Cap Tables'!A4:A75,1+MATCH(G85*10,'Cap Tables'!A4:A75))/10)) -> 2.4
B88: Does Device Enter Current Limit during start-up? | D88: =((Icharge*(10^-3)+Vcc_max/Rlstart) >= Ilimit_final) -> FALSE | G88: =Cout*0.001*Rlstart*(Ilimit_final/Icharge -1+LN(Icharge/(Ilimit_final-Vcc_max/Rlstart))) -> 0.1142921139
B89: Tchg_dvdt | C89: charge time set | D89: =IF(D88, G88, IF(Cdvdt_ext="OPEN",D80,Vcc_max*Cdvdt_ext*1000/2000)) -> 20.16 | E89: ms | F89: =F86 -> 0.1
B90: Pd_Cout_startup | C90: Power dissipation due to load cap at start-up | D90: =0.5*Vcc_max*Icharge/10^3 -> 0.0154 | E90: W | Z90: =23.97*Tchg_dvdt^(-0.33)*Tchg_dvdt*0.8 -> 143.4718422
Z91: =37.14*Tchg_dvdt^(-0.31)*Tchg_dvdt*0.51 -> 150.491004
B92: Total Power dissipation at Start-up | Y92: actual total energy for time tdvdt | Z92: time to tsd*power | AA92: actual energy for time vds>5.6
B93: Pd_Rlstart | C93: Power dissipation due to load resistance at start-up | D93: =(Vcc_max^2/Rlstart)*(1/6-(D20^2/2/Vcc_max^2)+(D20^3/3/Vcc_max^3)) -> 0.007771428571 | E93: W | I93: =(Vcc_max-5.6)*Tchg_dvdt/Vcc_max -> 13.44 | Y93: =0.5*Vcc_max*Icharge/10^3*Tchg_dvdt -> 0.310464 | Z93: =13.312*Tchg_dvdt^(-0.4)*Tchg_dvdt*0.8 -> 64.56952813 | AA93: =0.5*(Vcc_max+5.6)*Icharge/10^3*I93 -> 0.275968 | AB93: =IF(D20<Vcc_max-5.6,AA95,AA93) -> 0.275968
B94: Pd_startup | C94: Total power dissipation at start-up | D94: =D90+D93 -> 0.02317142857 | E94: W | Y94: =(Vcc_max^2/Rlstart)*(1/6-(D20^2/2/Vcc_max^2)+(D20^3/3/Vcc_max^3))*Tchg_dvdt -> 0.156672 | Z94: =30.81*I93^(-0.31)*I93*0.8 -> 148.0393538 | AA94: =(Tchg_dvdt/Rlstart)*(((Vcc_max-5.6)^2/2)-((Vcc_max-5.6)^3/3/Vcc_max)-(D20^2/2)+(D20^3/3/Vcc_max)) -> -0.04821333333
C95: Will the system have glitch-free startup? | D95: =IF(Vcc_max<=5.6,IF(D24<=25,AA98,IF(D24<=85,AA97,IF(D24<=125,AA99))),IF(D24<=25,AF96,IF(D24<=85,AA96,IF(D24<=125,AL96)))) -> YES | Y95: =Y93+Y94 -> 0.467136 | AA95: =AA93+AA94 -> 0.2277546667
B96: For CdVdt > 10 nF, it's recommended to add a 100-Ω resistor in series with the capacitor on the dVdt pin | D96: =IF(Vcc_max>=5.6,IF(D95="YES"," We recommend verify startup on EVM for particular system test case"," ")," ") -> We recommend verify startup on EVM for particular system test case | AA96: =IF(AB93<Z94,IF(Y95<Z90,"YES","NO, Increase Rlstart and/or Tchg_req; and/or Reduce Cout"),"NO, Increase Rlstart and/or Tchg_req; and/or Reduce Cout") -> YES | AF96: =IF(AB93<Z94,IF(Y95<Z91,"YES","NO, Increase Rlstart and/or Tchg_req; and/or Reduce Cout"),"NO, Increase Rlstart and/or Tchg_req; and/or Reduce Cout") -> YES | AL96: =IF(AB93<Z94,IF(Y95<Z93,"YES","NO, Increase Rlstart and/or Tchg_req; and/or Reduce Cout"),"NO, Increase Rlstart and/or Tchg_req; and/or Reduce Cout") -> YES
AA97: =IF(Y95<Z90,"YES","NO, Increase Rlstart and/or Tchg_req; and/or Reduce Cout") -> YES
Y98: =0.5*Vcc_max*Icharge/10^3 -> 0.0154 | Z98: =23.97*Tchg_dvdt^(-0.33)*0.8 -> 7.116658837 | AA98: =IF(Y95<Z91,"YES","NO, Increase Rlstart and/or Tchg_req; and/or Reduce Cout") -> YES
Y99: =(Vcc_max^2/Rlstart)*(1/6-(D20^2/2/Vcc_max^2)+(D20^3/3/Vcc_max^3)) -> 0.007771428571 | Z99: =37.14*Tchg_dvdt^(-0.31)*0.51 -> 7.464831549 | AA99: =IF(Y95<Z93,"YES","NO, Increase Rlstart and/or Tchg_req; and/or Reduce Cout") -> YES
Y100: =Y98+Y99 -> 0.02317142857 | Z100: =30.81*I93^(-0.31)*0.8 -> 11.01483287
B102: Steady state Voltage drop & Power dissipation
B103: Parameter | C103: Description | D103: Value | E103: Units | F103: Tolerance
B104: Vdrop | C104: Maximum voltage drop across device @ 25 degC | D104: =Imax*Rdson_25deg -> 61.6 | E104: mV
B105: Pdiss_Imax | C105: Steady state power dissipation with Max current @ 25degC | D105: =Imax^2*Rdson_25deg -> 135.52 | E105: mW
B107: Setting Overcurrent Blanking Interval (tITIMER)
B108: Parameter | C108: Description | D108: Value | E108: Units | F108: Tolerance
B109: CITIMER_cal | C109: Calculated Capacitor value at ITIMER pin | D109: =D23*1.8/1.5 -> 6 | E109: nF
B110: CITIMER_sel | C110: Select Closest value as CITIMER_cal | D110: =G110 -> 6.2 | E110: nF | F110: 0.1 | G110: =INDEX('Cap Tables'!B4:B75,1+MATCH(D109,'Cap Tables'!B4:B75)) -> 6.2
B111: tITIMER_final | C111: Final Load transient blanking interval | D111: =D110*1.5/1.8 -> 5.166666667 | E111: ms
B113: Parameters internal to Device
B114: Internal FET Parameters
B115: Parameter | C115: Description | D115: Value | E115: Units | F115: Tolerance
B116: VIN(Max) | C116: Maximum input voltage | D116: 23 | E116: V
B117: ID(max) | C117: FET drain-source current rating (maximum) | D117: 5.5 | E117: A
B118: Rds(on)(typ) | C118: FET Rds(on) for –40°C ≤ TJ ≤ 125°C | D118: 28 | E118: mOhm
B120: Thermal Parameters
B121: Tj(max) | C121: Deice maximum junction temperature | D121: 150 | E121: C
B122: RJA | C122: Junction to ambient thermal resistance | D122: 41.7 | E122: C/W
B124: Internal References
B125: UVref | C125: Internal Undervoltage reference (Falling) | D125: 1.1 | E125: V | F125: 0.063
B126: OVref | C126: Internal Overvoltage reference (Rising) | D126: 1.2 | E126: V | F126: 0.03
B127: GainIMON | C127: Current monitor gain | D127: 182 | E127: uA/A | F127: 0.037
B128: PGTH | C128: Internal Power good reference(Rising) | D128: 1.2 | E128: v

Sheet Res EIA Tables
A1: Standard EIA Decade Resistor Values
A3: 0.2 | B3: 0.1 | C3: 0.05 | D3: 0.02 | E3: 0.01 | F3: 0.5%, 0.25%, 0.1%
A4: E6 | B4: E12 | C4: E24 | D4: E48 | E4: E96 | F4: E192
A5: 100 | B5: 100 | C5: 100 | D5: 100 | E5: 100 | F5: 100
F6: 101
E7: 102 | F7: 102
F8: 104
D9: 105 | E9: 105 | F9: 105
F10: 106
E11: 107 | F11: 107
F12: 109
C13: 110 | D13: 110 | E13: 110 | F13: 110
F14: 111
E15: 113 | F15: 113
F16: 114
D17: 115 | E17: 115 | F17: 115
F18: 117
E19: 118 | F19: 118
F20: 120
B21: 120 | C21: 120 | D21: 121 | E21: 121 | F21: 121
F22: 123
E23: 124 | F23: 124
F24: 126
D25: 127 | E25: 127 | F25: 127
F26: 129
E27: 130 | F27: 130
F28: 132
C29: 130 | D29: 133 | E29: 133 | F29: 133
F30: 135
E31: 137 | F31: 137
F32: 138
D33: 140 | E33: 140 | F33: 140
F34: 142
E35: 143 | F35: 143
F36: 145
A37: 150 | B37: 150 | C37: 150 | D37: 147 | E37: 147 | F37: 147
F38: 149
E39: 150 | F39: 150
F40: 152
D41: 154 | E41: 154 | F41: 154
F42: 156
E43: 158 | F43: 158
F44: 160
C45: 160 | D45: 162 | E45: 162 | F45: 162
F46: 164
E47: 165 | F47: 165
F48: 167
D49: 169 | E49: 169 | F49: 169
F50: 172
E51: 174 | F51: 174
F52: 176
B53: 180 | C53: 180 | D53: 178 | E53: 178 | F53: 178
F54: 180
E55: 182 | F55: 182
F56: 184
D57: 187 | E57: 187 | F57: 187
F58: 189
E59: 191 | F59: 191
F60: 193
C61: 200 | D61: 196 | E61: 196 | F61: 196
F62: 198
E63: 200 | F63: 200
F64: 203
D65: 205 | E65: 205 | F65: 205
F66: 208
E67: 210 | F67: 210
F68: 213
A69: 220 | B69: 220 | C69: 220 | D69: 215 | E69: 215 | F69: 215
F70: 218
E71: 221 | F71: 221
F72: 223
D73: 226 | E73: 226 | F73: 226
F74: 229
E75: 232 | F75: 232
F76: 234
C77: 240 | D77: 237 | E77: 237 | F77: 237
F78: 240
E79: 243 | F79: 243
F80: 246
D81: 249 | E81: 249 | F81: 249
F82: 252
E83: 255 | F83: 255
F84: 258
B85: 270 | C85: 270 | D85: 261 | E85: 261 | F85: 261
F86: 264
E87: 267 | F87: 267
F88: 271
D89: 274 | E89: 274 | F89: 274
F90: 277
E91: 280 | F91: 280
F92: 284
C93: 300 | D93: 287 | E93: 287 | F93: 287
F94: 291
E95: 294 | F95: 294
F96: 298
D97: 301 | E97: 301 | F97: 301
F98: 305
E99: 309 | F99: 309
F100: 312
A101: 330 | B101: 330 | C101: 330 | D101: 316 | E101: 316 | F101: 316
F102: 320
E103: 324 | F103: 324
F104: 328
D105: 332 | E105: 332 | F105: 332
F106: 336
E107: 340 | F107: 340
F108: 344
C109: 360 | D109: 348 | E109: 348 | F109: 348
F110: 352
E111: 357 | F111: 357
F112: 361
D113: 365 | E113: 365 | F113: 365
F114: 370
E115: 374 | F115: 374
F116: 379
B117: 390 | C117: 390 | D117: 383 | E117: 383 | F117: 383
F118: 388
E119: 392 | F119: 392
F120: 397
D121: 402 | E121: 402 | F121: 402
F122: 407
E123: 412 | F123: 412
F124: 417
C125: 430 | D125: 422 | E125: 422 | F125: 422
F126: 427
E127: 432 | F127: 432
F128: 437
D129: 442 | E129: 442 | F129: 442
F130: 448
E131: 453 | F131: 453
F132: 459
A133: 470 | B133: 470 | C133: 470 | D133: 464 | E133: 464 | F133: 464
F134: 470
E135: 475 | F135: 475
F136: 481
D137: 487 | E137: 487 | F137: 487
F138: 493
E139: 499 | F139: 499
F140: 505
C141: 510 | D141: 511 | E141: 511 | F141: 511
F142: 517
E143: 523 | F143: 523
F144: 530
D145: 536 | E145: 536 | F145: 536
F146: 542
E147: 549 | F147: 549
F148: 556
B149: 560 | C149: 560 | D149: 562 | E149: 562 | F149: 562
F150: 569
E151: 576 | F151: 576
F152: 583
D153: 590 | E153: 590 | F153: 590
F154: 597
E155: 604 | F155: 604
F156: 612
C157: 620 | D157: 619 | E157: 619 | F157: 619
F158: 626
E159: 634 | F159: 634
F160: 642
D161: 649 | E161: 649 | F161: 649
F162: 657
E163: 665 | F163: 665
F164: 673
A165: 680 | B165: 680 | C165: 680 | D165: 681 | E165: 681 | F165: 681
F166: 690
E167: 698 | F167: 698
F168: 706
D169: 715 | E169: 715 | F169: 715
F170: 723
E171: 732 | F171: 732
F172: 741
C173: 750 | D173: 750 | E173: 750 | F173: 750
F174: 759
E175: 768 | F175: 768
F176: 777
D177: 787 | E177: 787 | F177: 787
F178: 796
E179: 806 | F179: 806
F180: 816
B181: 820 | C181: 820 | D181: 825 | E181: 825 | F181: 825
F182: 835
E183: 845 | F183: 845
F184: 856
D185: 866 | E185: 866 | F185: 866
F186: 876
E187: 887 | F187: 887
F188: 898
C189: 910 | D189: 909 | E189: 909 | F189: 909
F190: 920
E191: 931 | F191: 931
F192: 942
D193: 953 | E193: 953 | F193: 953
F194: 965
E195: 976 | F195: 976
F196: 988
A197: 1000 | B197: 1000 | C197: 1000 | D197: 1000 | E197: 1000 | F197: 1000 | G197: End Values Required for Processing

Sheet Cap Tables
A1: Standard Capacitor Values
A3: pF | B3: nF | C3: µF | D3: mF
A4: 1 | B4: 1 | C4: 1 | D4: 1
A5: 1.1 | B5: 1.1
A6: 1.2 | B6: 1.2
A7: 1.3 | B7: 1.3
A8: 1.5 | B8: 1.5 | C8: 1.5 | D8: 1.5
A9: 1.6 | B9: 1.6
A10: 1.8 | B10: 1.8
A11: 2 | B11: 2
A12: 2.2 | B12: 2.2 | C12: 2.2 | D12: 2.2
A13: 2.4 | B13: 2.4
A14: 2.7 | B14: 2.7
A15: 3 | B15: 3
A16: 3.3 | B16: 3.3 | C16: 3.3 | D16: 3.3
A17: 3.6 | B17: 3.6 | C17: =C18 -> 4.7
A18: 3.9 | B18: 3.9 | C18: =C19 -> 4.7
A19: 4.3 | B19: 4.3 | C19: =C20 -> 4.7
A20: 4.7 | B20: 4.7 | C20: 4.7 | D20: 4.7
A21: 5.1 | B21: 5.1 | C21: =C22 -> 6.8
A22: 5.6 | B22: 5.6 | C22: =C23 -> 6.8
A23: 6.2 | B23: 6.2 | C23: =C24 -> 6.8
A24: 6.8 | B24: 6.8 | C24: 6.8 | D24: 6.8
A25: 7.5 | B25: 7.5 | C25: =C26 -> 10
A26: 8.2 | B26: 8.2 | C26: =C27 -> 10
A27: 9.1 | B27: 9.1 | C27: =C28 -> 10
A28: 10 | B28: 10 | C28: 10 | D28: 10
A29: 11 | B29: =B30 -> 15 | C29: 15
A30: 12 | B30: 15 | C30: 15
A31: 13 | B31: 15 | C31: 15
A32: 15 | B32: 15 | C32: 15
A33: 16 | B33: =B34 -> 22 | C33: 22
A34: 18 | B34: 22 | C34: 22
A35: 20 | B35: 22 | C35: 22
A36: 22 | B36: 22 | C36: 22
A37: 24 | B37: =B38 -> 33 | C37: 33
A38: 27 | B38: 33 | C38: 33
A39: 30 | B39: 33 | C39: 33
A40: 33 | B40: 33 | C40: 33
A41: 36 | B41: =B42 -> 47 | C41: 47
A42: 39 | B42: 47 | C42: 47
A43: 43 | B43: 47 | C43: 47
A44: 47 | B44: 47 | C44: 47
A45: 51 | B45: =B46 -> 68 | C45: 68
A46: 56 | B46: 68 | C46: 68
A47: 62 | B47: 68 | C47: 68
A48: 68 | B48: 68 | C48: 68
A49: 75 | B49: =B50 -> 100 | C49: 100
A50: 82 | B50: 100 | C50: 100
A51: 91 | B51: 100 | C51: 100
A52: 100 | B52: 100 | C52: 100
A53: 110 | B53: =B54 -> 150 | C53: 150
A54: 120 | B54: 150 | C54: 150
A55: 130 | B55: 150 | C55: 150
A56: 150 | B56: 150 | C56: 150
A57: 160 | B57: =B58 -> 220 | C57: 220
A58: 180 | B58: 220 | C58: 220
A59: 200 | B59: 220 | C59: 220
A60: 220 | B60: 220 | C60: 220
A61: 240 | B61: =B62 -> 330 | C61: 330
A62: 270 | B62: 330 | C62: 330
A63: 300 | B63: 330 | C63: 330
A64: 330 | B64: 330 | C64: 330
A65: 360 | B65: =B66 -> 470 | C65: 470
A66: 390 | B66: 470 | C66: 470
A67: 430 | B67: 470 | C67: 470
A68: 470 | B68: 470 | C68: 470
A69: 510 | B69: =B70 -> 680 | C69: 680
A70: 560 | B70: 680 | C70: 680
A71: 620 | B71: 680 | C71: 680
A72: 680 | B72: 680 | C72: 680
A73: 750 | B73: =B74 -> 1000 | C73: =C74 -> 1000
A74: 820 | B74: =B75 -> 1000 | C74: =C75 -> 1000
A75: 910 | B75: 1000 | C75: 1000

Sheet TREL PLOT
A1: Temperature(Degree C | B1: VDS | C1: IDS | D1: Time(us) | E1: TSD Time(in seconds) | F1: TSD Time (in ms) | G1: Power(W)
A2: 25 | B2: 5.353 | C2: 0.273993 | E2: 16 | F2: =E2*1000 -> 16000 | G2: =B2*C2 -> 1.466684529
A3: 25 | B3: 6.841 | C3: 0.270759 | E3: 16 | F3: =E3*1000 -> 16000 | G3: =B3*C3 -> 1.852262319
A4: 25 | B4: 8.948176 | C4: 0.261876 | D4: 13894435 | E4: 13.894435 | F4: 13894.435 | G4: 2.343313
A5: 25 | B5: 11.915012 | C5: 0.267012 | D5: 2313228 | E5: 2.313228 | F5: 2313.228 | G5: 3.181451
A6: 25 | B6: 14.348408 | C6: 0.273357 | D6: 1179238 | E6: 1.179238 | F6: 1179.238 | G6: 3.922238
A7: 25 | B7: 17.190396 | C7: 0.284032 | D7: 658129 | E7: 0.658129 | F7: 658.129 | G7: 4.882623
A8: 25 | B8: 19.799713 | C8: 0.294506 | D8: 420662 | E8: 0.420662 | F8: 420.662 | G8: 5.831134
A9: 25 | B9: 5.31106 | C9: 1.316289 | D9: 130330 | E9: 0.13033 | F9: 130.33 | G9: 6.99089
A10: 25 | B10: 6.819721 | C10: 1.203395 | D10: 30506 | E10: 0.030506 | F10: 30.506 | G10: 8.206818
A11: 25 | B11: 7.324999 | C11: 1.211452 | D11: 19211 | E11: 0.019211 | F11: 19.211 | G11: 8.873885
A12: 25 | B12: 8.772255 | C12: 1.166436 | D12: 6257 | E12: 0.006257 | F12: 6.257 | G12: 10.232274
A13: 25 | B13: 16.575237 | C13: 1.215178 | D13: 915 | E13: 0.000915 | F13: 0.915 | G13: 20.141863
A14: 25 | B14: 6.856617 | C14: 4.703418 | D14: 323 | E14: 0.000323 | F14: 0.323 | G14: 32.249536
A15: 25 | B15: 9.189927 | C15: 4.426471 | D15: 209 | E15: 0.000209 | F15: 0.209 | G15: 40.678945
A16: 25 | B16: 12.114768 | C16: 4.225055 | D16: 146 | E16: 0.000146 | F16: 0.146 | G16: 51.185561
A17: 25 | B17: 14.038558 | C17: 4.48891 | D17: 122 | E17: 0.000122 | F17: 0.122 | G17: 63.017823
A18: 25 | B18: 15.945323 | C18: 4.56142 | D18: 105 | E18: 0.000105 | F18: 0.105 | G18: 72.733315
A19: 25 | B19: 17.325458 | C19: 4.605731 | D19: 98 | E19: 9.8e-05 | F19: 0.098 | G19: 79.796399
A20: 25 | B20: 17.806689 | C20: 4.636951 | D20: 95 | E20: 9.5e-05 | F20: 0.095 | G20: 82.568744
A21: 25 | B21: 19.580662 | C21: 4.680255 | D21: 87 | E21: 8.7e-05 | F21: 0.087 | G21: 91.642491

Sheet TSD PLOT
B1: VDS | C1: IDS | D1: Time(us) | E1: Power(W) | F1: TSD Time(in seconds) | G1: TSD Time(in milliseconds) | H1: Temperature(Degree C) | S1: -40 | U1: 25 | W1: 85 | Y1: 125
S2: 4.501844 | T2: 2031.01 | U2: 2.137698 | V2: 23021.011 | W2: 1.327849 | X2: 20761.422 | Y2: 1.039117 | Z2: 782.365
B3: 2.758 | C3: 0.34 | E3: =B3*C3 -> 0.93772 | H3: 25 | S3: 4.841949 | T3: 1365.979 | U3: 2.158971 | V3: 19870.804 | W3: 1.345315 | X3: 14738.653 | Y3: 1.138524 | Z3: 583.23
B4: 2.771344 | C4: 0.771358 | D4: 23021011 | E4: 2.137698 | F4: 23.021011 | G4: =1000*F4 -> 23021.011 | H4: 25 | S4: 5.258393 | T4: 936.735 | U4: 2.257254 | V4: 9809.087 | W4: 1.368246 | X4: 11355.892 | Y4: 1.253053 | Z4: 441.813
B5: 2.869735 | C5: 0.752324 | D5: 19870804 | E5: 2.158971 | F5: 19.870804 | G5: 19870.804 | H5: 25 | S5: 5.944164 | T5: 673.948 | U5: 2.336822 | V5: 7830.796 | W5: 2.116723 | X5: 780.52 | Y5: 1.37079 | Z5: 344.156
B6: 3.197705 | C6: 0.705898 | D6: 9809087 | E6: 2.257254 | F6: 9.809087 | G6: 9809.087 | H6: 25 | S6: 6.450255 | T6: 505.132 | U6: 4.555052 | V6: 497.695 | W6: 2.151375 | X6: 750.427 | Y6: 4.087796 | Z6: 12.623
B7: 3.401661 | C7: 0.686965 | D7: 7830796 | E7: 2.336822 | F7: 7.830796 | G7: 7830.796 | H7: 25 | S7: 14.795442 | T7: 36.134 | U7: 4.837825 | V7: 375.974 | W7: 2.597 | X7: 405.905 | Y7: 4.623383 | Z7: 10.184
B8: 2.608384 | C8: 1.746312 | D8: 497695 | E8: 4.555052 | F8: 0.497695 | G8: =1000*F8 -> 497.695 | H8: 25 | S8: 18.052777 | T8: 28.509 | U8: 5.345233 | V8: 281.928 | W8: 4.84294 | X8: 73.719 | Y8: 5.023212 | Z8: 8.007
B9: 3.262274 | C9: 1.482961 | D9: 375974 | E9: 4.837825 | F9: 0.375974 | G9: =1000*F9 -> 375.974 | H9: 25 | S9: 19.983069 | T9: 22.233 | U9: 5.872415 | V9: 220.768 | W9: 5.387815 | X9: 56.153 | Y9: 5.531954 | Z9: 6.375
B10: 3.781901 | C10: 1.413372 | D10: 281928 | E10: 5.345233 | F10: 0.281928 | G10: 281.928 | H10: 25 | S10: 22.382984 | T10: 17.659 | U10: 6.308521 | V10: 169.961 | W10: 5.875319 | X10: 43.491 | Y10: 6.107995 | Z10: 5.148
B11: 4.295379 | C11: 1.367147 | D11: 220768 | E11: 5.872415 | F11: 0.220768 | G11: 220.768 | H11: 25 | U11: 17.054611 | V11: 14.929 | W11: 6.403435 | X11: 34.578 | Y11: 16.830774 | Z11: 0.625
B12: 4.799632 | C12: 1.314376 | D12: 169961 | E12: 6.308521 | F12: 0.169961 | G12: 169.961 | H12: 25 | U12: 18.871649 | V12: 11.42 | W12: 16.844407 | X12: 3.718 | Y12: 18.476971 | Z12: 0.501
B13: 3.205904 | C13: 5.319751 | D13: 14929 | E13: 17.054611 | F13: 0.014929 | G13: 14.929 | H13: 25 | U13: 20.611383 | V13: 9.084 | W13: 18.913537 | X13: 2.879 | Y13: 21.184594 | Z13: 0.404
B14: 3.729631 | C14: 5.059924 | D14: 11420 | E14: 18.871649 | F14: 0.01142 | G14: 11.42 | H14: 25 | U14: 23.036022 | V14: 7.226 | W14: 21.181205 | X14: 2.285 | Y14: 23.563647 | Z14: 0.349
B15: 4.225685 | C15: 4.877643 | D15: 9084 | E15: 20.611383 | F15: 0.009084 | G15: 9.084 | H15: 25 | W15: 23.257106 | X15: 1.676
B16: 4.745312 | C16: 4.85448 | D16: 7226 | E16: 23.036022 | F16: 0.007226 | G16: 7.226 | H16: 25
G17: 0
B18: 3.437 | C18: 0.259503 | E18: =B18*C18 -> 0.891911811 | G18: 0 | H18: 85
B19: 3.935 | C19: 0.242079 | E19: =B19*C19 -> 0.952580865 | G19: 0 | H19: 85
B20: 4.45 | C20: 0.2747 | E20: =B20*C20 -> 1.222415 | G20: 0 | H20: 85
B21: 4.785283 | C21: 0.277486 | D21: 20761422 | E21: 1.327849 | F21: 20.761422 | G21: 20761.422 | H21: 85
B22: 4.883674 | C22: 0.275472 | D22: 14738653 | E22: 1.345315 | F22: 14.738653 | G22: 14738.653 | H22: 85
B23: 4.98514 | C23: 0.274465 | D23: 11355892 | E23: 1.368246 | F23: 11.355892 | G23: 11355.892 | H23: 85
B24: 2.561239 | C24: 0.826445 | D24: 780520 | E24: 2.116723 | F24: 0.78052 | G24: 780.52 | H24: 85
B25: 2.771344 | C25: 0.776293 | D25: 750427 | E25: 2.151375 | F25: 0.750427 | G25: 750.427 | H25: 85
B26: 3.90284 | C26: 0.665413 | D26: 405905 | E26: 2.597 | F26: 0.405905 | G26: 405.905 | H26: 85
B27: 3.228452 | C27: 1.500081 | D27: 73719 | E27: 4.84294 | F27: 0.073719 | G27: 73.719 | H27: 85
B28: 3.742955 | C28: 1.439455 | D28: 56153 | E28: 5.387815 | F28: 0.056153 | G28: 56.153 | H28: 85
B29: 4.256432 | C29: 1.380339 | D29: 43491 | E29: 5.875319 | F29: 0.043491 | G29: 43.491 | H29: 85
B30: 4.762735 | C30: 1.344487 | D30: 34578 | E30: 6.403435 | F30: 0.034578 | G30: 34.578 | H30: 85
B31: 3.148509 | C31: 5.349963 | D31: 3718 | E31: 16.844407 | F31: 0.003718 | G31: 3.718 | H31: 85
B32: 3.667112 | C32: 5.157611 | D32: 2879 | E32: 18.913537 | F32: 0.002879 | G32: 2.879 | H32: 85
B33: 4.17444 | C33: 5.074023 | D33: 2285 | E33: 21.181205 | F33: 0.002285 | G33: 2.285 | H33: 85
B34: 4.685867 | C34: 4.963245 | D34: 1676 | E34: 23.257106 | F34: 0.001676 | G34: 1.676 | H34: 85
G35: 0
B36: 2.957877 | C36: 0.351305 | D36: 782365 | E36: 1.039117 | F36: 0.782365 | G36: 782.365 | H36: 125
B37: 3.461106 | C37: 0.328948 | D37: 583230 | E37: 1.138524 | F37: 0.58323 | G37: 583.23 | H37: 125
B38: 3.968434 | C38: 0.315755 | D38: 441813 | E38: 1.253053 | F38: 0.441813 | G38: 441.813 | H38: 125
B39: 4.469612 | C39: 0.306691 | D39: 344156 | E39: 1.37079 | F39: 0.344156 | G39: 344.156 | H39: 125
B40: 2.686277 | C40: 1.521733 | D40: 12623 | E40: 4.087796 | F40: 0.012623 | G40: 12.623 | H40: 125
B41: 3.218203 | C41: 1.436635 | D41: 10184 | E41: 4.623383 | F41: 0.010184 | G41: 10.184 | H41: 125
B42: 3.734755 | C42: 1.344991 | D42: 8007 | E42: 5.023212 | F42: 0.008007 | G42: 8.007 | H42: 125
B43: 4.247208 | C43: 1.302492 | D43: 6375 | E43: 5.531954 | F43: 0.006375 | G43: 6.375 | H43: 125
B44: 4.754536 | C44: 1.284667 | D44: 5148 | E44: 6.107995 | F44: 0.005148 | G44: 5.148 | H44: 125
B45: 3.134161 | C45: 5.370105 | D45: 625 | E45: 16.830774 | F45: 0.000625 | G45: 0.625 | H45: 125
B46: 3.658912 | C46: 5.049854 | D46: 501 | E46: 18.476971 | F46: 0.000501 | G46: 0.501 | H46: 125
B47: 4.169315 | C47: 5.081073 | D47: 404 | E47: 21.184594 | F47: 0.000404 | G47: 0.404 | H47: 125
B48: 4.674594 | C48: 5.04079 | D48: 349 | E48: 23.563647 | F48: 0.000349 | G48: 0.349 | H48: 125
G49: 0
B50: 2.926 | C50: 0.339414 | E50: =B50*C50 -> 0.993125364 | G50: 0 | H50: -40
B51: 3.43 | C51: 0.306129 | E51: =B51*C51 -> 1.05002247 | G51: 0 | H51: -40
B52: 3.931 | C52: 0.288177 | E52: =B52*C52 -> 1.132823787 | G52: 0 | H52: -40
B53: 4.422 | C53: 0.276899 | E53: =B53*C53 -> 1.224447378 | G53: 0 | H53: -40
B54: 4.936 | C54: 0.26942 | E54: =B54*C54 -> 1.32985712 | G54: 0 | H54: -40
B55: 2.704725 | C55: 1.664437 | D55: 2031010 | E55: 4.501844 | F55: 2.03101 | G55: 2031.01 | H55: -40
B56: 3.24895 | C56: 1.490312 | D56: 1365979 | E56: 4.841949 | F56: 1.365979 | G56: 1365.979 | H56: -40
B57: 3.773702 | C57: 1.393431 | D57: 936735 | E57: 5.258393 | F57: 0.936735 | G57: 936.735 | H57: -40
B58: 4.291279 | C58: 1.385173 | D58: 673948 | E58: 5.944164 | F58: 0.673948 | G58: 673.948 | H58: -40
B59: 4.804756 | C59: 1.342473 | D59: 505132 | E59: 6.450255 | F59: 0.505132 | G59: 505.132 | H59: -40
B60: 3.124937 | C60: 4.734637 | D60: 36134 | E60: 14.795442 | F60: 0.036134 | G60: 36.134 | H60: -40
B61: 3.655838 | C61: 4.938068 | D61: 28509 | E61: 18.052777 | F61: 0.028509 | G61: 28.509 | H61: -40
B62: 4.17444 | C62: 4.787006 | D62: 22233 | E62: 19.983069 | F62: 0.022233 | G62: 22.233 | H62: -40
B63: 4.679718 | C63: 4.782977 | D63: 17659 | E63: 22.382984 | F63: 0.017659 | G63: 17.659 | H63: -40
